bitfinex/quotes_ETHUSD_20241109
["timestamp","ask_amount","ask_price","bid_price","bid_amount"]
[1731158557665,0.7534,3035.9,3035.4,0.15150352]
[1731158557866,0.7534,3035.9,3035.2,0.55]
[1731158558273,0.7534,3035.9,3035.4,0.55]
[1731158558577,0.7534,3035.9,3035.5,0.06587921]
[1731158558762,0.7534,3035.9,3035.5,0.15143263]
[1731158559909,0.7534,3035.9,3035.3,0.67154005]
[1731158560059,0.7534,3035.9,3035.6,0.15126657]
[1731158560255,0.7534,3035.9,3035.3,0.67154005]
[1731158560597,0.7534,3036.4,3035.3,0.67154005]
[1731158560907,0.7534,3036.4,3035.4,0.70140584]
[1731158561249,0.7534,3036.4,3035.4,0.55]
[1731158561892,0.7534,3036.3,3035.4,0.55]
[1731158563703,0.7534,3036.3,3035.5,0.15133496]
[1731158563866,0.7534,3036.3,3035.5,0.21721419]
[1731158564371,0.7534,3036.3,3035.5,0.06587923]
[1731158565095,0.7534,3036.3,3035.6,0.70126408]
[1731158565262,0.7534,3036.3,3035.8,0.55]
[1731158565613,0.82,3037.0,3036.0,0.55]
[1731158566982,0.82,3037.0,3036.1,0.15089487]
[1731158567176,0.82,3037.0,3036.2,0.06586477]
[1731158567890,0.82,3037.0,3036.3,0.55]
[1731158568091,0.82,3037.0,3036.4,0.06585904]
[1731158568468,0.82,3037.0,3036.5,0.7006115]
[1731158571837,0.82,3037.8,3036.5,0.7006115]
[1731158572008,0.82,3037.7,3036.5,0.7006115]
[1731158572619,0.82,3037.7,3036.1,0.66664471]
[1731158572620,0.82,3037.7,3036.2,0.55]
[1731158572823,0.82,3037.7,3036.4,0.55]
[1731158573335,0.82,3037.7,3036.6,0.55]
[1731158575299,0.82,3037.7,3036.3,0.55]
[1731158575503,0.82,3037.7,3036.2,0.55]
[1731158576109,0.82,3037.7,3036.4,0.55]
[1731158576499,0.82,3037.7,3036.2,0.55]
[1731158577324,0.82,3037.7,3036.4,0.55]
[1731158577703,0.82,3037.7,3036.6,0.55]
[1731158578242,0.82,3037.7,3036.7,0.15033418]
[1731158584339,0.30652974,3037.6,3036.7,0.15033418]
[1731158584544,0.7879,3037.5,3036.7,0.15033418]
[1731158586809,0.7508,3037.3,3036.1,0.66664471]
[1731158587007,0.7508,3037.3,3036.8,0.15025096]
[1731158587229,0.7508,3037.3,3036.2,0.43252645]
[1731158587428,0.7508,3037.3,3036.9,0.15018014]
[1731158587629,0.7508,3037.3,3036.2,0.43252645]
[1731158587850,0.7508,3037.3,3036.3,0.55]
[1731158588038,0.7508,3037.3,3036.5,0.55]
[1731158588242,0.7508,3037.3,3036.6,0.06585342]
[1731158588541,0.7508,3037.3,3036.6,0.21624602]
[1731158588747,0.7508,3037.3,3036.7,0.55]
[1731158589124,0.7508,3037.3,3036.8,0.15025096]
[1731158589448,0.7508,3037.3,3036.7,0.55]
[1731158589700,0.7508,3037.3,3036.9,0.15018014]
[1731158590012,0.7508,3037.3,3036.2,0.55]
[1731158590244,0.7508,3037.3,3037.0,0.15010933]
[1731158590445,0.7508,3037.3,3036.2,0.55]
[1731158590659,0.7508,3037.3,3036.1,0.55]
[1731158590819,0.7508,3037.3,3037.1,0.15003852]
[1731158591150,0.7508,3037.3,3036.3,0.55]
[1731158591517,0.7508,3037.3,3036.4,0.15053427]
[1731158591734,0.7508,3037.3,3036.2,0.355]
[1731158591932,0.7508,3037.3,3036.5,0.15046344]
[1731158592133,0.7508,3037.3,3036.3,0.64644589]
[1731158592338,0.3073452,3037.2,3036.6,0.1503926]
[1731158592527,0.7508,3037.8,3036.3,0.64644589]
[1731158592737,0.7508,3037.6,3036.7,0.15032178]
[1731158592941,0.7508,3037.4,3036.3,0.64644589]
[1731158593141,0.7508,3037.2,3036.8,0.15025096]
[1731158593453,0.7508,3037.2,3036.3,0.64644589]
[1731158593660,0.7008,3037.2,3036.9,0.15018014]
[1731158594055,0.7008,3037.2,3037.0,0.15009858]
[1731158594373,0.30771534,3037.1,3036.3,0.64644589]
[1731158594672,0.36849437,3037.8,3036.3,0.64644589]
[1731158594868,0.30774165,3037.7,3036.3,0.64644589]
[1731158595076,0.30774165,3037.6,3036.3,0.64644589]
[1731158595371,0.30774165,3037.5,3036.3,0.64644589]
[1731158595576,0.30774165,3037.4,3036.3,0.64644589]
[1731158595871,0.30790305,3037.3,3036.2,0.355]
[1731158596081,0.36849437,3037.8,3036.2,0.355]
[1731158596082,0.30790305,3037.2,3036.4,0.15052353]
[1731158596266,0.30790305,3037.1,3036.4,0.15052353]
[1731158596449,0.6849437,3037.7,3036.2,0.355]
[1731158596450,0.30790305,3037.0,3036.2,0.355]
[1731158596644,0.30790305,3036.9,3036.5,0.15045269]
[1731158596842,0.81994367,3036.8,3036.2,0.06586477]
[1731158597576,0.81994367,3036.8,3036.3,0.15059437]
[1731158597940,0.81994367,3036.8,3036.2,0.55]
[1731158598179,0.81994367,3036.8,3036.4,0.15052353]
[1731158598390,0.81994367,3036.8,3036.3,0.15059437]
[1731158598545,0.81994367,3036.8,3036.5,0.15045269]
[1731158598872,0.81994367,3036.8,3036.4,0.15052353]
[1731158599073,0.81994367,3036.8,3036.6,0.15038186]
[1731158599478,0.81994367,3036.8,3036.2,0.55]
[1731158599642,0.81994367,3036.8,3036.7,0.15031103]
[1731158600069,0.81994367,3036.8,3036.2,0.55]
[1731158600275,0.81994367,3036.8,3036.7,0.15031103]
[1731158601055,0.81994367,3036.8,3036.2,0.55]
[1731158601363,0.81994367,3036.8,3036.1,0.65511725]
[1731158601364,0.81994367,3036.8,3036.7,0.15031103]
[1731158601566,0.81994367,3036.8,3035.7,0.0506]
[1731158601761,0.81994367,3036.8,3035.7,0.37207309]
[1731158601970,0.81994367,3036.8,3035.8,0.21682777]
[1731158602265,0.81994367,3036.8,3035.8,0.15095939]
[1731158602797,0.81994367,3036.8,3036.0,0.65963867]
[1731158603151,0.81994367,3036.8,3036.1,0.15074681]
[1731158604359,0.81994367,3036.8,3036.2,0.66646736]
[1731158604713,0.81994367,3036.8,3036.2,0.6006]
[1731158604889,0.81994367,3036.8,3036.3,0.15060512]
[1731158605093,0.81994367,3036.8,3036.2,0.6006]
[1731158605462,0.81994367,3036.8,3036.3,0.15060512]
[1731158605874,0.81994367,3036.8,3036.4,0.15053428]
[1731158606378,0.81994367,3036.8,3036.5,0.15046344]
[1731158606784,0.81994367,3036.8,3036.2,0.6006]
[1731158606982,0.81994367,3036.8,3036.6,0.15040834]
[1731158607165,0.81994367,3036.8,3036.3,0.06586158]
[1731158607372,0.81994367,3036.8,3036.7,0.15033752]
[1731158608092,0.81994367,3036.8,3036.3,0.06586158]
[1731158608257,0.81994367,3036.8,3036.7,0.15033752]
[1731158608472,0.81994367,3036.8,3036.3,0.06586158]
[1731158609308,0.81994367,3036.8,3036.1,0.55]
[1731158609674,0.81994367,3036.8,3036.4,0.15055001]
[1731158610011,0.81994367,3036.8,3036.1,0.55]
[1731158610211,0.81994367,3036.8,3036.2,0.06586157]
[1731158610412,0.81994367,3036.8,3036.2,0.1506917]
[1731158610588,0.81994367,3036.8,3036.2,0.21655327]
[1731158610907,0.81994367,3036.8,3036.1,0.55]
[1731158611205,0.81994367,3036.8,3036.2,0.1506917]
[1731158611911,0.81994367,3036.8,3036.3,0.06586157]
[1731158612078,0.81994367,3036.8,3036.2,0.06586157]
[1731158612279,0.81994367,3036.8,3036.3,0.15062085]
[1731158612710,0.81994367,3036.8,3036.2,0.06586157]
[1731158613119,0.81994367,3036.8,3036.1,0.55]
[1731158613278,0.81994367,3036.8,3036.2,0.1506917]
[1731158614281,0.81994367,3036.8,3036.2,0.2165533]
[1731158615522,0.81994367,3036.8,3036.2,0.0658616]
[1731158615722,0.81994367,3036.8,3036.1,0.55]
[1731158615889,0.81994367,3036.8,3036.2,0.1506917]
[1731158616090,0.81994367,3036.8,3036.3,0.55]
[1731158616507,0.81994367,3036.8,3036.1,0.55]
[1731158617016,0.81994367,3036.8,3036.3,0.55]
[1731158617423,0.81994367,3036.8,3036.0,0.71023867]
[1731158617424,0.81994367,3036.8,3036.1,0.55]
[1731158617923,0.81994367,3036.8,3036.3,0.55]
[1731158618284,0.81994367,3036.8,3036.1,0.55]
[1731158618817,0.81994367,3036.8,3036.3,0.55]
[1731158619240,0.81994367,3036.8,3036.4,0.15055001]
[1731158619514,0.81994367,3036.8,3036.1,0.55]
[1731158619882,0.81994367,3036.8,3036.2,0.1506917]
[1731158620082,0.81994367,3036.8,3036.5,0.65568482]
[1731158626010,0.7686,3037.0,3036.6,0.15040834]
[1731158626433,0.7686,3037.0,3036.6,0.55]
[1731158626610,0.7686,3037.0,3036.7,0.06585385]
[1731158627317,0.6849437,3037.2,3036.7,0.06585385]
[1731158627519,1.4535437,3037.3,3036.8,0.55]
[1731158627733,0.7686,3037.3,3036.8,0.55]
[1731158627933,0.7686,3037.3,3036.6,0.55]
[1731158628133,0.7686,3037.3,3036.5,0.65568482]
[1731158628134,0.7686,3037.1,3036.9,0.15017931]
[1731158628347,1.4535437,3037.1,3036.5,0.65568482]
[1731158629153,1.4535437,3037.1,3036.6,0.15039177]
[1731158629334,0.7686,3037.0,3036.6,0.15039177]
[1731158629645,1.4535437,3037.0,3036.6,0.15039177]
[1731158630148,1.4535437,3037.0,3036.4,0.64329698]
[1731158630926,1.4535437,3037.0,3036.5,0.15047087]
[1731158631312,0.7686,3037.0,3036.4,0.64329698]
[1731158631513,1.4535437,3037.0,3036.4,0.64329698]
[1731158632816,0.7686,3036.9,3036.5,0.15047087]
[1731158633023,1.4535437,3036.9,3036.5,0.15047087]
[1731158633439,1.4535437,3036.9,3036.0,0.55]
[1731158633956,0.7686,3036.8,3036.2,0.55]
[1731158634134,0.7686,3036.8,3036.0,0.55]
[1731158634471,0.7686,3036.8,3036.2,0.55]
[1731158634829,0.7686,3036.8,3036.0,0.55]
[1731158635369,0.7686,3036.8,3036.2,0.55]
[1731158635523,0.7686,3036.8,3036.3,0.15061255]
[1731158635719,0.7686,3036.8,3036.0,0.55]
[1731158635922,0.7686,3036.8,3036.3,0.66981929]
[1731158636725,0.7686,3036.8,3035.5,3.0]
[1731158636726,0.6849437,3036.6,3035.8,0.55]
[1731158637068,0.6849437,3036.6,3035.9,0.14670832]
[1731158637069,0.7686,3036.5,3035.9,0.14670832]
[1731158637227,1.4535437,3036.5,3035.9,0.79555335]
[1731158637565,1.4535437,3036.5,3035.9,0.64884503]
[1731158637722,1.4535437,3036.5,3036.0,0.14663746]
[1731158637928,0.7686,3036.4,3036.0,0.14663746]
[1731158642442,0.7686,3036.4,3036.1,0.06586955]
[1731158642975,0.7686,3036.4,3036.2,0.14648167]
[1731158643263,0.7686,3036.4,3036.1,0.06586955]
[1731158643771,0.7686,3036.4,3036.2,0.14648167]
[1731158644068,0.7686,3036.4,3036.1,0.06586955]
[1731158644472,0.7686,3036.4,3036.2,0.14645351]
[1731158644860,0.7686,3036.4,3036.1,0.06586955]
[1731158645165,0.7686,3036.4,3036.2,0.14645351]
[1731158645369,0.6849437,3036.7,3036.1,0.06586955]
[1731158645667,0.7655,3036.9,3036.2,0.74705351]
[1731158646114,0.7655,3036.9,3036.3,0.06585785]
[1731158647176,0.7655,3036.9,3036.2,0.6006]
[1731158647371,0.7655,3036.9,3036.3,0.14679945]
[1731158647572,0.7655,3036.9,3036.2,0.6006]
[1731158647894,0.7655,3036.9,3036.3,0.21265734]
[1731158648270,0.7655,3036.9,3036.3,0.06585785]
[1731158649677,0.7655,3036.9,3036.4,0.6612136]
[1731158649887,0.7655,3036.9,3036.5,0.06585786]
[1731158650561,0.7655,3036.9,3036.4,0.6612136]
[1731158651969,0.7655,3036.9,3036.5,0.06585785]
[1731158655101,0.7655,3036.9,3036.4,0.6612136]
[1731158655691,0.7655,3036.9,3036.5,0.06585784]
[1731158656172,0.7655,3036.9,3036.4,0.6612136]
[1731158658097,0.7655,3036.9,3036.4,0.72707145]
[1731158658497,0.7655,3036.9,3036.4,0.6612136]
[1731158659687,0.7655,3036.9,3035.8,0.0506]
[1731158659878,0.7655,3036.9,3036.1,0.64552224]
[1731158660206,0.7655,3036.9,3036.2,0.1467981]
[1731158661090,0.7655,3036.9,3036.2,0.06586455]
[1731158661605,0.7655,3036.9,3036.1,0.64552224]
[1731158661806,0.7655,3036.9,3036.2,0.1467981]
[1731158662101,0.7655,3036.9,3036.1,0.64552224]
[1731158662468,0.7655,3036.9,3036.2,0.1467981]
[1731158662807,0.7655,3036.9,3036.1,0.64552224]
[1731158662966,0.7655,3036.9,3036.2,0.1467981]
[1731158663390,0.7655,3036.9,3036.2,0.21266261]
[1731158663785,0.7655,3036.9,3036.2,0.26326261]
[1731158665004,0.7655,3036.9,3036.2,0.26326255]
[1731158665481,0.7655,3036.9,3036.2,0.1973981]
[1731158665683,0.7655,3036.9,3036.2,0.26326251]
[1731158668201,0.7655,3036.9,3036.2,0.11646441]
[1731158668403,0.7655,3036.9,3036.3,0.14671802]
[1731158668605,0.7655,3036.9,3036.2,0.11646441]
[1731158668807,0.7655,3036.9,3036.3,0.14671802]
[1731158669008,0.7655,3036.9,3036.2,0.11646441]
[1731158669174,0.7655,3036.9,3036.4,0.14257841]
[1731158669376,0.7655,3036.9,3036.2,0.11646441]
[1731158669574,0.7655,3036.9,3036.3,0.14264926]
[1731158669775,0.7655,3036.9,3036.2,0.11646441]
[1731158670004,0.7655,3036.9,3036.3,0.14264926]
[1731158670319,0.7655,3036.9,3036.1,0.64552224]
[1731158670610,0.7655,3036.9,3036.2,0.14260739]
[1731158671197,0.7655,3036.9,3035.7,0.55]
[1731158671395,0.7655,3036.9,3035.9,0.66404462]
[1731158671600,0.7655,3036.9,3036.0,0.13881904]
[1731158672359,0.68925032,3036.7,3036.0,0.13881904]
[1731158672612,0.8228,3036.6,3036.0,0.13881904]
[1731158673823,0.8228,3036.6,3036.0,0.20468809]
[1731158674701,0.8228,3036.6,3036.0,0.13881904]
[1731158674910,0.68925032,3036.5,3036.0,0.13881904]
[1731158675210,0.68925032,3036.5,3034.6,0.06708952]
[1731158675211,0.8228,3036.1,3035.0,0.39429004]
[1731158675412,0.68885504,3035.9,3035.0,0.39429004]
[1731158675597,0.8228,3035.8,3035.0,0.0506]
[1731158676194,0.8228,3035.8,3035.2,0.65601395]
[1731158680937,0.8228,3035.8,3035.1,0.55]
[1731158681103,0.8228,3035.8,3035.1,1.19880632]
[1731158681494,0.8228,3035.8,3035.2,0.13903363]
[1731158685518,0.8228,3035.8,3034.6,0.39436733]
[1731158686005,0.8228,3035.8,3034.8,0.13940685]
[1731158686235,0.8228,3035.8,3034.6,0.34376733]
[1731158686434,0.8228,3035.8,3034.9,0.13968818]
[1731158686630,0.8228,3035.8,3034.4,7.29911644]
[1731158686937,0.8228,3035.8,3034.5,0.72991164]
[1731158687148,0.8228,3035.8,3034.5,0.86988351]
[1731158688045,0.8228,3035.8,3034.6,0.66601693]
[1731158688339,0.8228,3035.8,3034.6,0.80591787]
[1731158688554,0.8228,3035.8,3034.7,0.06589612]
[1731158688842,0.8228,3035.8,3034.8,0.1397591]
[1731158690020,0.8228,3035.8,3034.9,0.11649605]
[1731158690203,0.8228,3035.8,3034.9,0.19038951]
[1731158692048,0.8228,3035.8,3034.9,0.13978951]
[1731158692254,0.8228,3035.8,3034.8,0.55]
[1731158692435,0.8228,3035.8,3035.0,0.1397186]
[1731158692615,0.8228,3035.8,3034.8,0.55]
[1731158692816,0.8228,3035.8,3035.1,0.13964769]
[1731158693018,0.8228,3035.8,3034.8,0.55]
[1731158693243,0.8228,3035.8,3035.2,0.13957679]
[1731158693449,0.8228,3035.8,3034.8,0.55]
[1731158693615,0.8228,3035.8,3035.3,0.13950589]
[1731158693969,0.8228,3035.8,3035.1,0.65246956]
[1731158694252,0.8228,3035.8,3035.4,0.139435]
[1731158694413,0.8228,3035.8,3035.1,0.65246956]
[1731158694613,0.8228,3035.8,3035.5,0.13936411]
[1731158694809,0.8228,3035.8,3035.1,0.65246956]
[1731158695025,0.8228,3035.8,3035.6,0.13929323]
[1731158695251,0.8228,3035.8,3035.1,0.65246956]
[1731158695553,0.8228,3035.8,3035.7,0.13924262]
[1731158695725,0.8228,3035.8,3035.1,0.65246956]
[1731158696124,0.8228,3035.8,3035.2,0.13959706]
[1731158701746,0.8228,3035.8,3035.3,0.61588551]
[1731158701944,0.7521,3036.5,3035.3,0.61588551]
[1731158702256,0.7521,3036.5,3035.5,0.55]
[1731158702757,0.7521,3036.5,3035.6,0.13945259]
[1731158703828,0.7521,3036.5,3035.5,0.55]
[1731158705447,0.7521,3036.5,3035.6,0.13935117]
[1731158705760,0.7521,3036.5,3035.4,0.34169521]
[1731158706067,0.764,3036.4,3035.5,0.13989718]
[1731158706671,1.45285504,3036.4,3035.5,0.13989718]
[1731158706826,0.764,3036.2,3035.5,0.13989718]
[1731158707861,0.764,3036.1,3035.5,0.13989718]
[1731158711457,0.764,3036.1,3035.4,0.34169521]
[1731158712628,1.26570857,3035.5,3035.4,0.34169521]
[1731158712942,2.02970857,3035.5,3035.4,0.34169521]
[1731158717273,0.764,3035.8,3035.4,0.34169521]
[1731158717569,1.26570857,3035.7,3035.4,0.34169521]
[1731158718577,1.26570857,3035.5,3035.4,0.34169521]
[1731158719758,0.764,3035.8,3035.4,0.34169521]
[1731158719958,1.37850065,3036.3,3035.4,0.34169521]
[1731158719959,1.26570857,3035.9,3035.6,0.0506]
[1731158720633,0.764,3036.1,3035.6,0.0506]
[1731158720834,1.26570857,3035.9,3035.6,0.11647532]
[1731158721060,1.26570857,3035.9,3035.6,0.0506]
[1731158722185,0.68885504,3036.3,3035.6,0.0506]
[1731158722383,1.26570857,3036.2,3035.7,0.55]
[1731158723262,1.26570857,3036.0,3035.7,0.55]
[1731158724585,1.26570857,3036.2,3035.9,0.55]
[1731158724931,0.764,3036.4,3035.9,0.55]
[1731158724932,1.26570857,3036.4,3036.0,0.0506]
[1731158725389,1.26570857,3036.2,3036.0,0.0506]
[1731158725702,1.26570857,3036.2,3036.1,0.13436356]
[1731158726151,1.26570857,3036.2,3036.0,0.0506]
[1731158726488,1.26570857,3036.4,3036.0,0.11646871]
[1731158727446,1.26570857,3036.4,3036.0,0.0506]
[1731158727671,1.26570857,3036.4,3036.1,0.13432052]
[1731158727953,1.26570857,3036.4,3036.1,0.06586613]
[1731158729761,1.26570857,3036.4,3036.2,0.13424966]
[1731158729961,1.26570857,3036.4,3036.1,0.06586613]
[1731158730351,1.26570857,3036.4,3036.2,0.13424966]
[1731158730558,1.26570857,3036.4,3036.1,0.06586613]
[1731158731065,1.26570857,3036.4,3036.2,0.13424966]
[1731158731265,0.7833,3036.8,3036.3,0.06586551]
[1731158731589,1.26570857,3036.8,3036.4,0.0506]
[1731158733577,1.26570857,3036.8,3036.5,0.13401138]
[1731158734215,2.04900857,3037.1,3036.5,0.13401138]
[1731158734699,1.26570857,3036.9,3036.5,0.13401138]
[1731158735013,1.26570857,3036.9,3036.3,0.6636453]
[1731158735201,1.26570857,3036.9,3036.6,0.13391872]
[1731158735380,1.26570857,3036.9,3036.3,0.6636453]
[1731158735580,1.26570857,3036.9,3036.4,0.13406041]
[1731158736917,2.04900857,3037.1,3036.4,0.13406041]
[1731158737411,2.04900857,3037.1,3036.3,0.6636453]
[1731158737651,0.7833,3036.8,3036.2,0.0506]
[1731158737914,0.7833,3036.8,3036.4,0.13406041]
[1731158738114,0.7833,3036.8,3036.3,0.13408373]
[1731158738322,0.7833,3036.8,3036.2,0.0506]
[1731158738684,0.7833,3036.8,3036.3,0.13408373]
[1731158738900,0.7833,3036.8,3036.2,0.0506]
[1731158739180,0.7833,3036.8,3036.3,0.13408373]
[1731158739411,0.7833,3036.8,3036.2,0.0506]
[1731158739618,0.7833,3036.8,3036.4,0.13401288]
[1731158739837,0.7833,3036.8,3036.2,0.0506]
[1731158740042,0.7833,3036.8,3036.5,0.13394203]
[1731158740246,0.7833,3036.8,3036.2,0.0506]
[1731158740433,0.7833,3036.8,3036.6,0.13387119]
[1731158740606,0.7833,3036.8,3036.2,0.0506]
[1731158740951,0.7833,3036.8,3036.3,0.13408373]
[1731158741246,0.7833,3036.8,3036.2,0.0506]
[1731158741408,0.7833,3036.8,3036.4,0.13401288]
[1731158741742,0.7833,3036.8,3036.2,0.69664244]
[1731158741943,0.7833,3036.8,3036.5,0.13394515]
[1731158742140,0.7833,3036.8,3036.2,0.69664244]
[1731158742346,0.7833,3036.8,3036.6,0.1338743]
[1731158742560,0.7833,3036.8,3036.2,0.69664244]
[1731158742744,0.7833,3036.8,3036.7,0.13380347]
[1731158742943,0.7833,3036.8,3036.2,0.69664244]
[1731158743121,0.7833,3037.0,3036.3,0.06586107]
[1731158743315,0.7833,3037.0,3036.3,0.68407717]
[1731158743544,1.26570857,3036.9,3036.3,0.68407717]
[1731158744019,1.26570857,3036.9,3036.3,0.55]
[1731158748681,0.7833,3037.0,3036.3,0.55]
[1731158748878,0.7833,3037.0,3036.4,0.13400632]
[1731158749264,0.7833,3037.0,3036.3,0.55]
[1731158749473,0.7833,3037.0,3036.5,0.13393547]
[1731158749800,0.7833,3037.0,3036.3,0.55]
[1731158749949,0.7833,3037.0,3036.6,0.13386463]
[1731158750151,0.7833,3037.0,3036.3,0.55]
[1731158750684,0.7833,3037.0,3036.4,0.134016]
[1731158750897,0.7833,3037.0,3036.3,0.55]
[1731158751056,0.7833,3037.0,3036.5,0.13394515]
[1731158751273,0.7833,3037.0,3036.2,0.69664244]
[1731158751605,0.7833,3037.0,3036.6,0.1338743]
[1731158751806,0.7833,3037.0,3036.2,0.69664244]
[1731158752209,0.7833,3037.0,3036.3,0.13338454]
[1731158752372,1.26570857,3036.9,3036.3,0.13338454]
[1731158754314,0.7833,3037.0,3036.3,0.13338454]
[1731158755517,0.98820086,3037.0,3036.3,0.13338454]
[1731158756776,1.26570857,3036.9,3036.3,0.13338454]
[1731158757297,1.26570857,3036.9,3036.2,0.69664244]
[1731158757478,1.26570857,3036.9,3036.4,0.13331369]
[1731158757677,1.26570857,3036.9,3036.2,0.69664244]
[1731158757977,1.26570857,3036.9,3036.5,0.13324284]
[1731158758177,1.49109951,3036.9,3036.2,0.69664244]
[1731158758378,0.7833,3037.0,3036.2,0.69664244]
[1731158758578,0.7833,3037.0,3036.3,0.13338454]
[1731158761812,0.68885504,3037.3,3036.4,0.0506]
[1731158762001,1.72273053,3037.6,3036.6,0.0506]
[1731158762201,0.71311422,3037.5,3036.7,0.0506]
[1731158762553,1.54601422,3037.5,3036.7,0.0506]
[1731158763135,4.54601422,3037.5,3036.7,0.0506]
[1731158764314,5.23486926,3037.5,3036.7,0.0506]
[1731158764523,4.54601422,3037.5,3036.7,0.0506]
[1731158764930,5.23486926,3037.5,3036.7,0.0506]
[1731158766206,0.65005778,3037.4,3036.7,0.0506]
[1731158766402,3.65005778,3037.4,3036.7,0.0506]
[1731158766607,0.65005778,3037.4,3036.7,0.0506]
[1731158768109,4.33891282,3037.4,3036.7,0.0506]
[1731158768647,0.68885504,3037.3,3036.7,0.0506]
[1731158768827,1.30942387,3037.3,3036.7,0.0506]
[1731158769205,1.33891282,3037.4,3036.7,0.0506]
[1731158769413,0.68885504,3037.4,3036.7,0.0506]
[1731158769619,0.68885504,3037.5,3036.7,0.0506]
[1731158769808,0.68885504,3037.5,3036.8,0.13300382]
[1731158770358,0.68885504,3037.4,3036.9,0.06585598]
[1731158770509,3.68885504,3037.7,3036.8,0.0506]
[1731158772051,0.68885504,3037.7,3036.9,0.0506]
[1731158772346,0.68885504,3037.7,3037.0,0.06584715]
[1731158772520,4.47825504,3037.8,3037.0,0.06584715]
[1731158772921,4.47825504,3037.8,3037.1,0.0506]
[1731158773328,1.47825504,3037.8,3037.1,0.0506]
[1731158773646,0.7894,3037.8,3037.1,0.0506]
[1731158773811,1.47825504,3037.8,3037.1,0.0506]
[1731158774011,3.68885504,3037.9,3037.1,0.0506]
[1731158774217,0.68885504,3037.8,3037.1,0.0506]
[1731158774511,3.08898406,3038.0,3037.1,0.0506]
[1731158774512,1.47825504,3038.0,3037.1,0.0506]
[1731158774716,1.47825504,3038.0,3037.2,0.18317008]
[1731158774918,1.47825504,3038.0,3037.2,0.0506]
[1731158775138,0.7894,3038.0,3037.2,0.0506]
[1731158775325,1.47825504,3038.0,3037.2,0.0506]
[1731158775533,0.7894,3038.0,3037.2,0.0506]
[1731158775858,1.95456361,3038.2,3037.2,0.0506]
[1731158776418,1.95456361,3038.2,3037.4,0.0506]
[1731158776719,1.95456361,3038.2,3037.5,0.13238585]
[1731158776720,1.26570857,3038.0,3037.5,0.13238585]
[1731158777430,1.26570857,3038.0,3037.4,0.0506]
[1731158777640,1.06931895,3038.2,3037.4,0.0506]
[1731158777835,2.33502752,3038.2,3037.4,0.0506]
[1731158778669,1.64617248,3038.2,3037.4,0.0506]
[1731158778832,1.26570857,3038.2,3037.4,0.0506]
[1731158779036,4.50505504,3038.3,3037.4,0.0506]
[1731158779560,1.26570857,3038.4,3037.4,0.0506]
[1731158779561,0.68885504,3038.4,3037.4,0.0506]
[1731158779762,2.77076361,3038.5,3037.4,0.0506]
[1731158780324,2.08190857,3038.5,3037.5,0.1322698]
[1731158780531,2.08190857,3038.5,3037.6,0.0506]
[1731158780720,2.08190857,3038.5,3037.6,0.18279901]
[1731158780923,2.08190857,3038.5,3037.6,0.0506]
[1731158781367,2.08190857,3038.5,3037.7,0.13212822]
[1731158782043,0.8162,3038.5,3037.6,0.0506]
[1731158782358,2.08190857,3038.5,3037.6,0.0506]
[1731158782736,3.67115811,3038.8,3037.7,1.81570857]
[1731158782932,0.67115811,3038.8,3037.7,0.55]
[1731158783165,4.93686668,3038.8,3037.7,0.55]
[1731158783675,0.8162,3038.7,3037.7,0.55]
[1731158783967,3.8162,3038.7,3037.5,0.55]
[1731158784173,3.8162,3038.7,3037.7,0.55]
[1731158784573,3.8162,3038.7,3037.8,0.13205744]
[1731158784939,0.8162,3039.0,3037.8,0.13205744]
[1731158785142,2.08190857,3039.0,3037.9,0.06582699]
[1731158785344,5.08190857,3039.0,3037.9,0.19781365]
[1731158785544,3.57707636,3038.9,3037.9,0.19781365]
[1731158785764,3.57707636,3038.9,3037.9,0.06582699]
[1731158785966,3.57707636,3038.9,3037.8,0.06582707]
[1731158786481,3.57707636,3038.9,3037.7,0.55]
[1731158786779,0.57707636,3038.9,3037.9,0.13198666]
[1731158786939,2.08190857,3039.0,3037.8,1.46359315]
[1731158787140,2.08190857,3039.0,3038.0,0.13191589]
[1731158787438,2.08190857,3039.0,3037.7,0.55]
[1731158787641,1.26570857,3038.8,3037.7,0.55]
[1731158788040,1.26570857,3038.8,3037.8,0.13205744]
[1731158788546,1.26570857,3038.8,3037.8,0.41234542]
[1731158788971,1.46235504,3039.3,3037.8,0.41234542]
[1731158789180,1.26570857,3039.0,3037.8,0.41234542]
[1731158789500,1.26570857,3039.0,3037.8,0.28028798]
[1731158789682,1.26570857,3039.0,3037.9,0.1319127]
[1731158790271,0.42657086,3039.0,3037.9,0.1319127]
[1731158790472,5.03920857,3039.3,3038.0,1.81570857]
[1731158790689,2.03920857,3039.3,3038.0,1.9475505]
[1731158791571,1.26570857,3039.1,3038.0,1.9475505]
[1731158793480,1.26570857,3039.1,3038.3,0.66870159]
[1731158794079,1.26570857,3039.1,3038.4,0.13151666]
[1731158794385,0.20392086,3039.1,3038.4,0.13151666]
[1731158794593,2.03920857,3039.3,3038.4,0.13151666]
[1731158794761,2.03920857,3039.3,3038.0,0.65955752]
[1731158795099,1.26570857,3039.1,3038.0,0.65955752]
[1731158795679,1.26570857,3039.1,3038.1,0.13172894]
[1731158796298,0.7735,3039.0,3038.1,0.13172894]
[1731158796547,2.03920857,3038.6,3037.5,0.34219844]
[1731158796697,2.03920857,3038.6,3038.2,0.1316441]
[1731158796900,0.7735,3038.6,3037.7,1.26570857]
[1731158797207,0.7735,3038.6,3038.3,0.13156945]
[1731158797397,0.7735,3038.6,3037.7,1.26570857]
[1731158797734,2.03920857,3038.6,3037.8,0.12825623]
[1731158798037,0.20392086,3038.5,3037.5,0.34219844]
[1731158798336,0.7735,3038.6,3037.6,1.26570857]
[1731158798496,0.7735,3038.6,3037.6,1.39411554]
[1731158798699,0.7735,3038.6,3037.8,1.26570857]
[1731158799134,0.7735,3038.6,3037.9,0.12819462]
[1731158800338,3.68885504,3039.1,3037.9,0.12819462]
[1731158800339,0.7735,3039.1,3038.1,1.26570857]
[1731158800535,1.28623557,3039.1,3038.1,1.26570857]
[1731158800738,0.7735,3039.1,3038.2,0.12799072]
[1731158806551,0.68885504,3039.5,3038.5,1.26570857]
[1731158806745,1.03387549,3039.6,3038.5,1.26570857]
[1731158806746,0.68885504,3039.6,3038.5,1.26570857]
[1731158806910,3.7794,3039.5,3038.5,1.26570857]